bitfinex/quotes_ETHUSD_20250807
["timestamp","ask_amount","ask_price","bid_price","bid_amount"]
[1754606857885,0.10498389,3909.9,3908.3,0.1]
[1754606858181,0.10498389,3909.9,3908.9,0.1]
[1754606858384,0.10498389,3909.9,3908.4,4.89158591]
[1754606858385,8.83511289,3909.1,3909.0,0.02558199]
[1754606858549,8.83511289,3909.1,3907.5,0.19362886]
[1754606858550,9.30001289,3909.1,3907.8,0.1]
[1754606858751,8.83511289,3908.8,3907.9,0.55]
[1754606858951,8.83511289,3908.0,3907.5,0.55]
[1754606859181,8.83511289,3908.0,3905.0,6.165]
[1754606859182,8.83511289,3908.1,3907.4,0.1]
[1754606859484,2.55906001,3907.7,3906.9,0.19588721]
[1754606859786,0.10498389,3909.9,3906.6,0.1]
[1754606859989,0.10498389,3909.9,3908.4,0.1]
[1754606859990,0.9568,3909.8,3908.4,0.1]
[1754606860292,0.4649,3909.7,3909.3,0.1]
[1754606860509,0.4649,3909.7,3906.7,0.55]
[1754606860510,0.002,3910.7,3909.4,0.02557937]
[1754606860799,0.9568,3910.6,3908.7,0.1]
[1754606860962,8.83511289,3909.5,3908.5,0.1]
[1754606861303,8.83511289,3909.9,3907.9,0.768382]
[1754606861461,8.83511289,3910.1,3910.0,0.1]
[1754606861662,0.002,3910.7,3910.6,0.1]
[1754606862104,1e-08,3910.7,3910.6,8.26047235]
[1754606862249,2.21999477,3913.7,3913.2,0.1]
[1754606862556,5.13615893,3914.7,3910.6,16.910466]
[1754606862557,2.55458028,3914.6,3913.3,0.1]
[1754606862749,8.83511289,3913.4,3912.7,0.02555779]
[1754606862950,2.55574295,3912.8,3908.1,6.154]
[1754606863194,2.55574295,3912.8,3906.2,2.56003056]
[1754606863195,9.06552713,3912.7,3906.2,2.56003056]
[1754606863410,8.83511289,3908.7,3906.8,2.55960844]
[1754606863686,8.83511289,3907.5,3904.5,0.684]
[1754606863891,8.83511289,3907.5,3904.0,2.56147254]
[1754606863892,8.83511289,3906.1,3906.0,0.768617]
[1754606864062,9.80231289,3906.1,3902.4,0.13010955]
[1754606864247,9.80231289,3906.1,3903.5,0.769039]
[1754606864248,14.9721,3906.0,3903.5,0.769039]
[1754606864456,8.83511289,3906.8,3904.7,2.56097643]
[1754606864654,11.12478095,3906.9,3905.9,0.128]
[1754606864887,1.11247809,3906.8,3906.7,0.128]
[1754606865198,16.19868095,3907.7,3906.8,0.128]
[1754606865199,5.543,3907.4,3906.8,0.128]
[1754606865402,0.4721,3907.6,3906.8,0.128]
[1754606865567,0.768681,3909.2,3906.9,8.33683774]
[1754606865881,0.4951,3908.7,3907.5,0.128]
[1754606866082,10.15758095,3908.1,3905.9,0.4694]
[1754606866282,5.546,3908.6,3904.4,11.697]
[1754606866283,8.0701435,3907.6,3904.4,11.697]
[1754606866589,10.15758095,3909.4,3905.4,2.56055717]
[1754606866786,10.15758095,3910.0,3905.6,5.56041603]
[1754606866949,10.15758095,3910.0,3905.8,3.0]
[1754606867154,5.545,3910.3,3906.0,3.0]
[1754606867155,10.15758095,3909.2,3906.0,3.0]
[1754606867386,0.1,3914.1,3907.0,10.15758095]
[1754606867592,0.4721,3910.9,3907.2,3.0]
[1754606867805,0.4721,3910.9,3907.6,3.0]
[1754606867982,10.62968095,3910.9,3907.8,3.0]
[1754606868188,0.4721,3910.9,3908.1,2.55878815]
[1754606868497,0.4721,3910.9,3908.4,3.0]
[1754606868704,0.4721,3910.9,3907.9,0.4761]
[1754606868854,2.55735827,3910.3,3909.0,2.55817539]
[1754606869049,6.064841,3910.8,3908.1,2.55878815]
[1754606869050,0.4721,3910.4,3908.1,2.55878815]
[1754606869273,0.4721,3910.4,3909.2,2.55806227]
[1754606869480,2.55757417,3910.0,3906.7,2.55970512]
[1754606869704,0.768161,3911.9,3910.0,10.237091]
[1754606869991,0.4721,3912.9,3909.4,5.538]
[1754606870284,0.4721,3912.9,3909.5,37.555679]
[1754606870500,10.65268095,3912.8,3908.7,5.552]
[1754606870654,0.9672,3912.7,3909.3,0.55]
[1754606870850,3.52249009,3912.6,3910.6,2.5571161]
[1754606871088,10.15758095,3910.7,3907.5,0.0027]
[1754606871260,10.15758095,3909.9,3906.0,0.019]
[1754606871449,10.15758095,3909.9,3907.4,2.55921243]
[1754606871450,10.15758095,3909.0,3907.4,2.55921243]
[1754606871666,10.15758095,3907.7,3906.0,2.56015039]
[1754606871869,10.15758095,3907.7,3905.5,2.56043303]
[1754606871870,10.15758095,3907.7,3905.3,0.0027]
[1754606872068,10.15758095,3907.7,3904.7,0.019]
[1754606872069,5.93388345,3907.7,3905.5,2.56049161]
[1754606872255,1.19280383,3907.1,3906.9,2.55957393]
[1754606872476,0.55,3908.8,3906.9,2.55957393]
[1754606872477,5.552,3907.6,3906.9,2.55957393]
[1754606872676,10.15758095,3907.9,3906.9,2.5595587]
[1754606873005,5.552,3907.8,3906.9,2.55954977]
[1754606873303,14.5,3908.4,3906.1,2.5600983]
[1754606873304,5.545,3908.4,3906.1,2.5600983]
[1754606873588,9.146,3909.1,3906.3,3.55]
[1754606873589,6.146,3909.1,3906.3,3.55]
[1754606873758,6.146,3909.1,3907.8,2.55897533]
[1754606873956,6.146,3909.1,3906.8,3.55]
[1754606874187,0.55,3910.5,3907.1,0.55]
[1754606874188,10.15758095,3910.5,3907.1,0.55]
[1754606874487,4.4481698,3912.5,3906.9,8.805694]
[1754606874488,0.4721,3911.7,3907.4,0.55]
[1754606874711,0.4721,3911.7,3907.2,8.188835]
[1754606874712,2.55710532,3910.7,3908.4,3.0]
[1754606874855,3.05201218,3911.0,3909.9,2.55759783]
[1754606874856,0.4951,3911.0,3909.9,2.55759783]
[1754606875054,0.4951,3911.0,3909.2,0.55]
[1754606875272,0.4951,3911.0,3909.5,3.0]
[1754606875496,0.4951,3911.0,3909.9,2.55759802]
[1754606875792,0.4721,3910.9,3908.5,0.4694]
[1754606876004,2.55748317,3910.1,3907.9,0.55]
[1754606876210,5.9951,3910.0,3908.1,3.0]
[1754606876508,5.521,3909.9,3908.2,6.955479]
[1754606876806,5.521,3909.9,3907.9,3.0]
[1754606877110,0.128,3911.3,3909.8,0.128]
[1754606877620,2.5572021,3910.6,3909.4,2.55793325]
[1754606877783,2.55758672,3910.0,3908.8,2.5582858]
[1754606877980,0.9672,3909.9,3907.4,6.145]
[1754606878206,5.519,3909.8,3907.5,7.454596]
[1754606878415,0.9672,3909.9,3907.6,5.369231]
[1754606878575,2.55710764,3910.7,3909.3,2.5579904]
[1754606878576,5.513,3910.1,3909.3,2.5579904]
[1754606878773,2.55731291,3910.4,3908.7,0.55]
[1754606878998,6.0071,3910.7,3908.3,3.0]
[1754606879310,6.0071,3910.7,3908.7,2.55839537]
[1754606879311,0.4951,3910.7,3908.7,2.55839537]
[1754606879470,0.4721,3910.8,3909.0,2.55819902]
[1754606879782,0.4721,3910.8,3908.4,0.55]
[1754606880104,0.4721,3910.8,3908.9,3.0]
[1754606880413,0.4721,3910.8,3908.2,2.5586675]
[1754606880414,10.15758095,3910.0,3908.3,2.55864026]
[1754606880625,2.55809781,3909.2,3906.7,0.4761]
[1754606880803,2.55819902,3909.0,3907.9,2.55886202]
[1754606881105,0.4721,3908.9,3907.0,2.55950857]
[1754606881268,0.4721,3908.9,3907.2,2.55937755]
[1754606881471,0.4721,3908.9,3907.8,2.55898123]
[1754606881693,0.4951,3908.8,3907.8,0.46608]
[1754606881923,0.4721,3908.9,3908.5,2.55847046]
[1754606882226,0.4721,3908.9,3907.2,2.55933872]
[1754606882227,5.5,3909.4,3908.4,2.5585374]
[1754606882514,5.5,3909.4,3908.5,2.55851173]
[1754606882725,0.9025005,3909.4,3908.5,2.5585015]
[1754606882875,0.9672,3909.5,3908.6,2.55844434]
[1754606883075,0.9672,3909.5,3908.5,2.55846179]
[1754606883275,2.55811552,3909.2,3907.3,2.55925558]
[1754606883488,2.55800736,3909.3,3907.6,3.0]
[1754606883688,5.481,3909.2,3908.8,2.55831321]
[1754606883922,0.9672,3909.1,3907.6,3.0]
[1754606884087,0.9672,3909.1,3907.5,0.87263976]
[1754606884088,0.9672,3909.1,3907.7,3.0]
[1754606884428,0.9672,3909.0,3907.6,2.55911452]
[1754606884756,0.4721,3908.9,3907.7,0.2321999]
[1754606885018,0.4721,3908.9,3908.0,2.55883447]
[1754606885175,0.4721,3908.9,3908.4,2.55856204]
[1754606885380,0.4721,3908.9,3907.1,2.55944306]
[1754606885381,0.4721,3909.4,3907.5,3.0]
[1754606885683,0.4951,3909.8,3908.3,2.55862413]
[1754606885925,0.4951,3909.8,3908.4,0.14151341]
[1754606886211,0.4951,3909.8,3908.5,0.37370654]
[1754606886509,0.4721,3909.7,3908.6,0.37370654]
[1754606886689,0.4721,3909.7,3908.7,0.37370654]
[1754606886886,0.4951,3909.6,3908.8,0.1416981]
[1754606887210,0.4951,3909.6,3908.9,0.37419338]
[1754606887412,0.4721,3910.2,3909.0,0.37419338]
[1754606887586,0.4951,3910.5,3909.5,0.128]
[1754606887779,0.4951,3910.5,3908.6,3.0]
[1754606887780,0.4951,3910.5,3910.1,2.68547741]
[1754606887979,0.9672,3910.5,3910.4,0.128]
[1754606888176,5.448,3910.5,3910.4,0.128]
[1754606888378,6.24851171,3910.5,3910.4,0.128]
[1754606888611,7.76571171,3910.5,3908.6,3.0]
[1754606888911,0.4721,3910.4,3908.8,3.0]
[1754606889239,0.4721,3910.4,3908.6,3.0]
[1754606889527,5.443,3910.3,3908.8,2.55832992]
[1754606889728,5.443,3910.3,3910.2,0.128]
[1754606890015,8.49544854,3910.3,3910.2,0.128]
[1754606890232,9.04544854,3910.3,3910.2,0.128]
[1754606890394,0.55,3909.7,3906.7,2.55970512]
[1754606890576,0.9672,3909.6,3906.8,3.8706754]
[1754606890777,5.43,3909.5,3907.2,3.0]
[1754606890976,5.432,3910.1,3907.4,3.0]
[1754606891179,5.432,3910.1,3908.3,3.0]
[1754606891408,5.432,3910.1,3908.6,3.0]
[1754606891588,0.9672,3910.0,3908.7,0.3753134]
[1754606891793,5.432,3910.1,3908.8,0.3753134]
[1754606891794,0.55,3909.6,3908.8,0.3753134]
[1754606891993,0.9672,3909.5,3908.1,2.55878027]
[1754606892201,0.9672,3909.4,3908.2,0.37577518]
[1754606892401,0.9672,3909.4,3906.8,0.4694]
[1754606892402,2.55818989,3909.1,3908.3,0.37577518]
[1754606892705,2.55828001,3908.9,3908.4,0.14225598]
[1754606893015,5.426,3909.0,3908.5,0.14225598]
[1754606893179,0.9672,3908.9,3908.6,0.14225598]
[1754606893380,0.9672,3908.9,3908.7,0.14225598]
[1754606893580,2.55867197,3908.3,3907.3,2.55926314]
[1754606893778,0.9142,3908.8,3907.2,3.0]
[1754606894025,5.8724,3908.8,3908.2,2.55866092]
[1754606894176,5.8754,3908.8,3908.0,2.55880709]
[1754606894384,5.8754,3908.8,3906.9,0.46]
[1754606894585,2.55845644,3908.7,3907.8,2.55897375]
[1754606894805,8.88453406,3908.8,3907.9,2.55891113]
[1754606895003,6.3262,3908.8,3907.2,2.55937755]
[1754606895209,0.4634,3908.7,3906.6,2.55977064]
[1754606895415,10.60838095,3908.6,3906.8,0.87263976]
[1754606895709,2.55859175,3908.4,3907.3,2.55929615]
[1754606895914,10.60838095,3908.6,3907.7,2.55901161]
[1754606895915,0.4634,3908.3,3907.7,2.55901161]
[1754606896140,2.55872286,3908.2,3907.8,0.14310044]
[1754606896312,0.9142,3908.1,3907.9,0.14310044]
[1754606896635,3.47298815,3908.1,3908.0,0.14310044]
[1754606896821,8.86298815,3908.1,3908.0,0.14310044]
[1754606897818,0.768869,3908.1,3908.0,0.14310044]
[1754606898137,5.38,3908.1,3908.0,0.14321371]
[1754606899242,9.39098815,3908.1,3908.0,0.14321371]
[1754606899545,8.39618815,3908.1,3908.0,0.14321371]
[1754606899839,8.84698815,3908.1,3908.0,0.14321371]
[1754606900238,8.84698815,3908.1,3906.8,0.001]
[1754606900239,6.2882,3908.1,3906.8,2.56062688]
[1754606900569,2.55912344,3907.6,3906.9,0.14316761]
[1754606900708,5.362,3907.5,3907.0,0.14316761]
[1754606900908,0.4634,3908.0,3907.0,2.55945978]
[1754606900909,5.362,3907.4,3907.0,2.55945978]
[1754606901161,2.5590389,3907.8,3907.1,0.14316135]
[1754606901162,5.362,3907.3,3907.1,0.14316135]
[1754606901334,5.362,3907.3,3907.2,0.14316135]
[1754606901665,5.362,3907.3,3907.2,0.27116135]
[1754606903848,5.362,3907.3,3907.2,0.27117842]
[1754606904151,5.8254,3907.3,3907.2,0.27117842]
[1754606904568,6.2762,3907.3,3907.2,0.27117842]
[1754606905059,5.8254,3907.3,3907.2,0.27117842]
[1754606905209,8.83551205,3907.3,3907.2,0.27117842]
[1754606905410,6.2762,3907.3,3907.2,0.27117842]
[1754606905667,5.8254,3907.3,3907.2,0.27117842]
[1754606905953,8.83551205,3907.3,3907.2,0.27117842]
[1754606906111,3.47351205,3907.3,3907.2,0.27117842]
[1754606906307,0.271178,3908.3,3907.2,0.14317842]
[1754606906308,0.4634,3908.1,3907.2,0.14317842]
[1754606906538,5.311,3908.1,3907.7,2.5589894]
[1754606906735,0.23860946,3908.0,3907.9,2.55891911]
[1754606906913,5.308,3908.8,3907.9,0.14317842]
[1754606907114,5.308,3908.8,3908.4,2.55857892]
[1754606907344,5.308,3908.8,3907.6,0.46]
[1754606907345,5.308,3908.8,3908.6,2.55844844]
[1754606907640,5.308,3908.8,3908.7,2.70157379]
[1754606907843,5.308,3908.8,3908.7,0.14317842]
[1754606908012,2.55808231,3909.2,3908.7,0.14317842]
[1754606908215,0.23856339,3909.1,3908.8,0.14317842]
[1754606908414,2.56003127,3912.4,3908.8,0.14317842]
[1754606908415,0.23856339,3909.6,3909.4,2.55789425]
[1754606908647,0.23856339,3909.6,3908.7,2.55837489]
[1754606908648,5.53156339,3909.9,3908.3,0.46]
[1754606908848,2.55774352,3909.7,3908.6,2.55839632]
[1754606909047,0.23856339,3909.6,3908.9,2.55824681]
[1754606909247,2.79644716,3909.5,3909.0,0.14312835]
[1754606909447,0.23856339,3909.4,3909.1,0.14312835]
[1754606909649,0.23856339,3909.3,3909.2,0.14312835]
[1754606909862,0.23856339,3909.3,3909.2,2.70119649]
[1754606910062,0.002,3910.8,3910.4,2.55727621]
[1754606910063,5.284,3910.8,3910.4,2.55727621]
[1754606910234,5.284,3910.8,3910.1,2.55741862]
[1754606910564,5.284,3910.8,3909.9,2.55755897]
[1754606910755,0.002,3910.8,3910.3,2.55732003]
[1754606910950,0.002,3910.8,3908.8,3.0]
[1754606910951,0.002,3910.8,3910.7,2.55708696]
[1754606911324,0.002,3910.8,3910.7,3.01708696]
[1754606911847,0.002,3910.8,3910.7,3.49018696]
[1754606912438,0.002,3910.8,3910.7,3.01708696]
[1754606912657,0.002,3910.8,3910.0,8.27]
[1754606912658,0.002,3910.8,3909.9,0.46]
[1754606912827,0.002,3910.8,3910.7,2.55708696]
[1754606913033,0.002,3910.8,3909.9,0.9331]
[1754606913233,0.002,3910.8,3909.3,0.46]
[1754606913435,0.002,3910.8,3909.4,0.4731]
[1754606913645,0.002,3910.8,3910.3,2.55734489]
[1754606913951,0.002,3910.8,3908.8,5.27]
[1754606914159,2.55728973,3910.4,3908.8,5.27]
[1754606914358,0.94616685,3910.3,3908.0,0.4731]
[1754606914676,0.94616685,3910.3,3908.0,0.9331]
[1754606914677,0.4634,3910.2,3908.0,0.9331]
[1754606914974,2.55767251,3909.9,3908.2,2.55872268]
[1754606915144,0.4508,3910.3,3908.1,0.4731]
[1754606915343,0.55,3910.1,3908.6,2.5584114]
[1754606915574,2.55761016,3909.9,3907.6,0.46]
[1754606915775,2.6023781,3910.0,3907.8,2.55898459]
[1754606915969,3.47174594,3910.0,3909.1,2.55810768]
[1754606916167,3.47174594,3910.0,3909.2,2.55804802]
[1754606916369,0.4634,3910.7,3909.0,2.55819902]
[1754606916567,0.4634,3910.7,3909.2,2.55803134]
[1754606916779,0.002,3910.8,3909.1,3.9331]
[1754606916953,0.002,3910.8,3910.0,2.55752151]
[1754606917151,0.002,3910.8,3909.1,3.9331]
[1754606917352,0.002,3910.8,3910.7,0.128]
[1754606918194,0.002,3910.8,3910.7,2.68508696]
[1754606918748,0.002,3910.8,3910.7,3.61818696]
[1754606919061,0.002,3910.8,3910.7,3.49018696]
[1754606919400,0.002,3910.8,3910.7,2.55708696]
[1754606920056,0.002,3910.8,3910.7,3.49018696]
[1754606920374,0.002,3910.8,3910.7,2.55708696]
[1754606926274,0.9169,3910.8,3909.5,0.4348]
[1754606926504,0.9169,3910.8,3909.0,0.47]
[1754606926505,0.9169,3910.8,3909.2,5.173]
[1754606926680,3.47392686,3910.8,3909.2,5.173]
[1754606926884,3.47392686,3910.8,3910.0,2.5575048]
[1754606926885,0.9169,3910.8,3910.0,2.5575048]
[1754606927079,0.9169,3910.8,3909.5,2.55781943]
[1754606927080,0.47366358,3910.7,3909.2,5.173]
[1754606927280,2.55715493,3910.6,3909.2,5.173]
[1754606927479,0.4417,3910.5,3909.2,5.173]
[1754606927715,0.4417,3910.5,3908.4,0.001]
[1754606927716,10.63078095,3910.4,3908.4,0.001]
[1754606927879,0.4732,3910.4,3909.4,2.55789543]
[1754606928076,5.168,3910.3,3909.6,2.55775553]
[1754606928276,2.55741908,3910.2,3909.5,2.55786801]
[1754606928594,5.168,3910.3,3908.6,2.55846082]
[1754606928798,5.168,3910.3,3908.7,2.55839537]
[1754606929008,5.168,3910.3,3908.4,0.001]
[1754606929009,0.9149,3910.2,3908.4,0.001]
[1754606929302,0.9149,3910.2,3909.0,2.5581942]
[1754606929303,2.55770635,3909.8,3909.0,2.5581942]
[1754606929628,2.55755747,3910.0,3909.9,0.128]
[1754606929937,7.70836683,3910.3,3909.7,0.128]
[1754606930097,2.55747934,3910.1,3908.5,2.55846984]
[1754606930299,3.47244475,3910.0,3908.5,2.55852628]
[1754606930499,2.99933047,3909.9,3909.1,2.55807628]
[1754606930996,0.9149,3909.8,3909.1,2.55811884]
[1754606931196,0.4417,3909.7,3908.4,0.001]
[1754606931396,5.144,3910.1,3909.7,0.128]
[1754606931603,5.144,3910.1,3909.8,2.55766315]
[1754606931830,5.5857,3910.1,3910.0,0.128]
[1754606932033,0.4417,3910.1,3910.0,0.128]
[1754606932359,0.9149,3910.1,3910.0,0.128]
[1754606932736,0.9149,3910.1,3908.4,2.55954063]
[1754606932737,2.5576698,3909.9,3908.4,2.55954063]
[1754606933030,0.4417,3909.8,3909.0,2.55814075]
[1754606933234,5.133,3909.9,3909.4,2.55791128]
[1754606933450,5.133,3909.9,3909.2,2.55801174]
[1754606933451,0.9149,3909.8,3909.2,2.55801174]
[1754606933605,0.9149,3909.8,3909.0,2.55818315]
[1754606933801,0.9149,3909.8,3909.7,0.128]
[1754606934716,10.28558095,3910.6,3909.7,0.128]
[1754606934717,3.03050168,3910.4,3909.7,0.128]
[1754606934916,5.126,3910.3,3909.7,0.128]
[1754606935108,5.126,3910.3,3909.5,2.55787185]
[1754606935309,5.126,3910.3,3910.2,0.128]
[1754606935504,5.5992,3910.3,3910.2,0.128]
[1754606935706,6.0409,3910.3,3910.2,0.128]
[1754606936144,8.59824854,3910.3,3910.2,0.128]
[1754606936329,6.0409,3910.3,3910.2,0.128]
[1754606936543,5.5677,3910.3,3910.2,0.128]
[1754606936710,8.59824854,3910.3,3910.2,0.128]
[1754606937216,7.91648295,3910.3,3910.2,0.128]
[1754606937532,6.0409,3910.3,3910.2,0.128]
[1754606938119,8.59824854,3910.3,3910.2,0.128]
[1754606938319,6.0409,3910.3,3910.2,0.128]
[1754606938519,8.59824854,3910.3,3910.2,0.128]
[1754606939122,8.59824854,3910.3,3908.2,0.4348]
[1754606939123,2.55755943,3910.0,3908.2,0.4348]
[1754606939428,0.4417,3909.9,3909.3,2.55798522]
[1754606939633,5.082,3909.8,3909.3,2.55798522]
[1754606939836,0.4417,3909.9,3909.8,0.128]
[1754606940049,5.5187,3909.9,3909.8,0.128]
[1754606940254,5.5187,3909.9,3909.2,2.55803091]
[1754606940255,5.9919,3909.9,3909.3,0.001]
[1754606940451,2.55793727,3909.4,3909.3,0.001]
[1754606940654,7.66191148,3909.4,3909.3,0.001]
[1754606940917,5.072,3909.4,3909.3,0.129]
[1754606941165,3.47283727,3909.4,3909.3,0.129]
[1754606941345,8.57181148,3909.4,3909.3,0.129]
[1754606941531,8.53983727,3909.4,3909.3,0.129]
[1754606941732,8.53983727,3909.4,3909.3,0.001]
[1754606942052,5.3224771,3909.4,3909.3,0.001]
[1754606942360,3.10800271,3909.3,3909.2,0.128]
[1754606942559,12.71577997,3909.0,3908.9,0.001]
[1754606942760,17.77177997,3909.0,3908.9,0.001]
[1754606942962,18.68667997,3909.0,3908.9,0.001]
[1754606943260,20.93514527,3909.0,3908.9,0.001]
[1754606943866,23.93514527,3909.0,3908.9,0.001]
[1754606944082,2.55846082,3908.6,3908.5,0.001]
[1754606944369,8.15446082,3908.6,3908.5,0.001]
[1754606944687,13.24493438,3908.6,3908.5,0.001]
[1754606945771,5.038,3908.6,3908.5,0.129]
[1754606945957,10.28558095,3909.4,3908.5,0.129]
[1754606946157,2.55814234,3909.1,3908.5,0.129]
[1754606946357,0.5697,3909.7,3909.1,0.128]
[1754606946557,0.23797726,3909.7,3909.2,2.55804986]
[1754606946759,5.034,3909.6,3908.9,2.55820905]
[1754606947078,5.034,3909.6,3908.5,0.001]
[1754606947238,5.034,3909.6,3909.3,0.128]
[1754606947239,2.55795259,3909.4,3909.3,0.128]
[1754606947439,3.47278749,3909.5,3909.3,0.128]
[1754606947672,2.55793727,3909.4,3909.3,0.128]
[1754606948251,0.256,3909.9,3909.3,0.128]
[1754606948446,5.021,3909.8,3909.3,0.128]
[1754606948642,12.71551822,3909.4,3909.3,0.128]
[1754606948866,15.17858095,3909.4,3909.0,0.128]
[1754606949065,2.55815366,3909.1,3909.0,0.128]
[1754606949371,5.019,3909.1,3908.9,0.128]
[1754606949673,0.9149,3909.0,3908.5,0.001]
[1754606949896,2.55833951,3908.8,3908.5,0.001]
[1754606950173,5.01,3908.7,3908.5,0.129]
[1754606950473,2.55846082,3908.6,3908.5,0.001]
[1754606950674,3.47336082,3908.6,3908.5,0.001]
[1754606950841,3.60136082,3908.6,3908.5,0.001]
[1754606951574,0.4732,3909.2,3908.5,0.001]
[1754606951887,2.55846082,3908.6,3908.5,0.001]
[1754606952086,4.996,3908.6,3908.5,0.001]
[1754606952556,9.01936082,3908.6,3908.5,0.001]
[1754606952887,2.55891911,3907.9,3907.8,0.128]
[1754606953187,8.81295583,3907.7,3907.5,0.129]
[1754606953358,4.988,3907.6,3907.5,0.129]
[1754606953694,4.988,3907.6,3907.5,0.001]
[1754606953849,4.98,3907.6,3907.5,0.001]
[1754606954049,4.98,3907.6,3907.5,0.129]
[1754606954446,7.53811556,3907.6,3907.5,0.129]
[1754606954646,8.45231556,3907.6,3907.5,0.129]
[1754606954846,6.99433038,3907.6,3907.5,0.001]
[1754606955088,9.55344594,3907.6,3907.5,0.001]
[1754606955502,8.63924594,3907.6,3907.5,0.001]
[1754606955708,4.979,3907.6,3907.5,0.001]
[1754606955902,7.53811556,3907.6,3907.5,0.001]
[1754606956102,8.45231556,3907.6,3907.5,0.001]
[1754606956340,4.967,3907.6,3907.5,0.001]
[1754606956631,5.8812,3907.6,3907.5,0.001]
[1754606956937,3.10918106,3907.5,3906.8,0.001]
[1754606957117,13.26132653,3906.9,3906.8,0.001]
[1754606957287,18.21932653,3906.9,3906.8,0.001]
[1754606957489,19.13352653,3906.9,3906.8,0.001]
[1754606957742,18.58352653,3906.9,3906.8,0.001]
[1754606957891,7.51157408,3906.9,3906.8,0.001]
[1754606958088,2.55943796,3907.2,3906.8,0.001]
[1754606958292,4.95,3907.1,3906.8,0.001]
[1754606958491,2.55957408,3906.9,3906.8,0.001]
[1754606958727,3.66109656,3906.9,3906.8,0.001]
[1754606958911,4.57529656,3906.9,3906.8,0.001]
[1754606959316,5.12529656,3906.9,3906.8,0.001]
[1754606960031,2.5600983,3906.1,3906.0,0.001]
[1754606960244,18.45586058,3906.1,3906.0,0.001]
[1754606960389,19.37006058,3906.1,3906.0,0.001]
[1754606960797,7.75010813,3906.1,3906.0,0.001]
[1754606961142,4.932,3906.1,3906.0,2.56116385]
[1754606961341,4.932,3906.1,3906.0,3.49916385]
[1754606961634,4.932,3906.1,3906.0,0.001]
[1754606961996,4.932,3906.1,3906.0,3.02466385]
[1754606962554,4.927,3906.1,3906.0,2.56116385]
[1754606962731,6.146,3906.5,3906.0,2.56116385]
[1754606962937,6.146,3906.5,3906.2,2.56003276]
[1754606963246,0.769169,3907.4,3906.8,2.55963387]
[1754606963403,4.916,3907.3,3906.3,0.938]
[1754606963603,4.914,3907.2,3906.7,2.55968729]
[1754606963835,4.914,3907.2,3906.3,3.02344807]
[1754606963836,4.914,3907.1,3906.3,3.02344807]
[1754606964056,4.914,3907.1,3906.4,2.55984892]
[1754606964273,4.914,3907.1,3906.3,2.55995192]
[1754606964549,4.914,3907.1,3906.0,1.001]
[1754606964550,3.0,3906.8,3906.0,1.001]
[1754606964773,16.26185075,3906.1,3906.0,1.001]
[1754606965044,16.26185075,3906.1,3905.1,0.001]
[1754606965045,13.26237519,3905.3,3905.1,0.001]
[1754606965354,19.20666628,3905.3,3905.1,0.001]
[1754606965651,20.67086628,3905.3,3905.1,0.001]
[1754606965801,23.67086628,3905.3,3905.1,0.001]
[1754606966004,22.08857519,3905.3,3905.1,0.001]
[1754606966841,22.21657519,3905.3,3905.1,0.001]
[1754606967544,2.5610818,3904.6,3904.5,0.001]
[1754606967742,18.15783425,3904.6,3904.5,0.001]
[1754606967943,18.28583425,3904.6,3904.5,0.001]
[1754606968152,21.28471697,3904.6,3904.5,0.001]
[1754606969052,24.28471697,3904.6,3904.5,0.001]
[1754606969261,2.56171891,3903.7,3902.9,0.4635]
[1754606969455,21.72363517,3904.6,3902.5,0.4635]
[1754606969456,2.56195338,3903.3,3902.5,0.4635]
[1754606969743,3.00387888,3904.0,3902.5,0.4635]
[1754606969744,2.17236352,3904.5,3902.6,0.47966986]
[1754606970077,4.886,3904.4,3902.7,0.4635]
[1754606970229,4.887,3904.3,3902.8,0.4745]
[1754606970435,4.887,3904.2,3904.0,2.56147092]
[1754606970634,4.887,3904.2,3903.9,2.56153921]
[1754606970936,4.887,3904.2,3903.8,2.56159541]
[1754606971131,4.887,3904.2,3903.8,3.02505209]
[1754606971365,4.887,3904.2,3902.3,2.56254197]
[1754606971666,4.887,3904.2,3903.2,0.4635]
[1754606971868,13.15175245,3905.1,3903.3,0.4745]
[1754606972034,0.4718,3905.3,3903.3,0.4745]
[1754606972035,2.56093869,3904.9,3904.1,2.56140519]
[1754606972234,4.877,3905.0,3904.0,2.5614754]
[1754606972472,0.03201106,3904.9,3904.2,2.56129493]
[1754606972677,7.43781947,3905.0,3904.2,2.56129493]
[1754606972939,4.877,3905.0,3904.3,2.5612139]
[1754606973254,4.877,3905.0,3904.5,2.56113336]
[1754606973456,4.877,3905.0,3904.5,0.4635]
[1754606973813,4.877,3905.0,3904.2,0.4745]
[1754606974133,4.877,3905.0,3904.1,0.4635]
[1754606974360,4.877,3905.0,3904.3,2.56122511]
[1754606974562,7.43783543,3905.0,3904.2,2.56134204]
[1754606974770,2.56089219,3904.9,3904.1,3.02490277]
[1754606975145,2.56089219,3904.9,3904.1,2.56140277]
[1754606975356,0.03201188,3904.8,3903.1,2.56204374]
[1754606975670,8.82671095,3904.5,3904.0,2.56144697]
[1754606975873,7.41226314,3904.4,3903.0,2.56213169]
[1754606976072,4.851,3904.4,3903.7,2.56162421]
[1754606976388,4.851,3904.4,3903.5,0.4745]
[1754606976565,4.851,3904.4,3904.0,2.56143441]
[1754606976874,1.88253657,3904.9,3904.2,2.56128357]
[1754606977238,1.88253657,3904.9,3904.0,3.02495552]
[1754606977239,4.846,3904.8,3904.0,0.4635]
[1754606977443,4.846,3904.8,3904.3,2.56123235]
[1754606977652,4.846,3904.8,3904.6,2.56106808]